fUST/lending_fUST_20250320
["ID","MTS","AMOUNT","RATE_DAILY","PERIOD"]
[356413666,1742424647102,-18199.969,0.000452,120]
[356413667,1742424647111,-500.0,0.00045205,7]
[356413668,1742424647121,-150.0,0.00045434,14]
[356413669,1742424647130,-150.0,0.00045434,14]
[356413670,1742424647139,-500.0,0.00045479,8]
[356413671,1742424647149,-1834.39,0.00045479,120]
[356413672,1742424647158,-535.28739291,0.00045521,10]
[356413673,1742424647168,-885.0,0.000456,39]
[356413674,1742424647178,-153.0,0.00045644,30]
[356413675,1742424647187,-153.0,0.00045644,30]
[356413676,1742424647197,-153.0,0.00045644,30]
[356413677,1742424647207,-153.0,0.00045644,30]
[356413678,1742424647217,-153.0,0.00045644,30]
[356413679,1742424647226,-153.0,0.00045644,30]
[356413680,1742424647236,-500.0,0.000457,50]
[356413681,1742424647245,-500.0,0.00045753,9]
[356413682,1742424647256,-500.0,0.000458,120]
[356413683,1742424647265,-10000.0,0.000459,6]
[356413684,1742424647275,-3923.08822428,0.0004599,4]
[356413685,1742424647285,-1000.0,0.00046,30]
[356413686,1742424647295,-2000.0,0.00046,30]
[356413687,1742424647304,-10000.0,0.00046,2]
[356413688,1742424647643,-500.0,0.00046027,10]
[356413689,1742424647654,-150.0,0.000462,120]
[356413690,1742424647663,-10000.0,0.000462,120]
[356413691,1742424647673,-500.0,0.000462,50]
[356413692,1742424647682,-500.0,0.00046301,11]
[356413693,1742424647693,-1834.39,0.00046301,120]
[356413694,1742424647706,-535.28739291,0.00046314,10]
[356413695,1742424647715,-514.88134675,0.00046428,97]
[356413696,1742424647725,-153.0,0.00046466,30]
[356413697,1742424647735,-153.0,0.00046466,30]
[356413698,1742424647746,-153.0,0.00046466,30]
[356413699,1742424647757,-153.0,0.00046466,30]
[356413700,1742424647767,-153.0,0.00046466,30]
[356413701,1742424647777,-153.0,0.00046466,30]
[356413702,1742424647788,-153.0,0.00046466,30]
[356413703,1742424647798,-153.0,0.00046466,30]
[356413704,1742424647807,-153.0,0.00046466,30]
[356413705,1742424647817,-289.5865686,0.00046466,30]
[356413706,1742424647827,-514.88134675,0.00046528,90]
[356413707,1742424647838,-500.0,0.00046532,2]
[356413708,1742424647848,-500.0,0.00046575,12]
[356413709,1742424647858,-514.88134675,0.00046628,92]
[356413710,1742424647869,-514.88134675,0.00046728,95]
[356413711,1742424647879,-514.88134675,0.00046828,91]
[356413712,1742424647890,-500.0,0.00046849,17]
[356413713,1742424647900,-500.0,0.00046849,13]
[356413714,1742424647910,-500.0,0.00046849,17]
[356413715,1742424647921,-514.88134675,0.00046928,95]
[356413716,1742424647931,-1717.72738719,0.00047,14]
[356413717,1742424647942,-514.88134675,0.00047028,94]
[356413718,1742424647953,-535.28739291,0.00047107,10]
[356413719,1742424647963,-500.0,0.00047123,14]
[356413720,1742424647973,-1834.39,0.00047123,120]
[356413721,1742424647984,-514.88134675,0.00047128,98]
[356413722,1742424647994,-2000.0,0.000472,120]
[356413723,1742424648004,-514.88134675,0.00047228,91]
[356413724,1742424648014,-514.88134675,0.00047328,90]
[356413725,1742424648025,-222.31130919,0.00047397,15]
[356413726,1742424648034,-514.88134675,0.00047428,99]
[356413727,1742424648044,-514.88134675,0.00047528,92]
[356413728,1742424648053,-514.88134675,0.00047628,94]
[356413729,1742424648063,-2000.0,0.00047671,120]
[356413730,1742424648073,-2000.0,0.00047671,120]
[356413731,1742424648083,-2000.0,0.00047671,120]
[356413732,1742424648093,-2000.0,0.00047671,120]
[356413733,1742424648103,-2000.0,0.00047671,120]
[356413734,1742424648113,-2000.0,0.00047671,120]
[356413735,1742424648123,-2000.0,0.00047671,120]
[356413736,1742424648132,-2000.0,0.00047671,120]
[356413737,1742424648142,-2000.0,0.00047671,120]
[356413738,1742424648152,-2000.0,0.00047671,120]
[356413739,1742424648161,-2000.0,0.00047671,120]
[356413740,1742424648170,-2000.0,0.00047671,120]
[356413741,1742424648180,-2000.0,0.00047671,120]
[356413742,1742424648191,-2000.0,0.00047671,120]
[356413743,1742424648203,-2000.0,0.00047671,120]
[356413744,1742424648212,-2000.0,0.00047671,120]
[356413745,1742424648223,-2000.0,0.00047671,120]
[356413746,1742424648233,-2000.0,0.00047671,120]
[356413747,1742424648243,-2000.0,0.00047671,120]
[356413748,1742424648252,-2000.0,0.00047671,120]
[356413749,1742424648263,-2000.0,0.00047671,120]
[356413750,1742424648273,-2000.0,0.00047671,120]
[356413751,1742424648283,-1004.41552846,0.00047671,120]
[356413752,1742424648295,-154.04,0.000477,120]
[356413753,1742424648305,-160.0,0.00047703,5]
[356413754,1742424648315,-185.340634,0.00047725,120]
[356413755,1742424648325,-514.88134675,0.00047728,92]
[356413756,1742424648335,-5000.0,0.0004775,120]
[356413757,1742424648344,-5000.0,0.0004775,120]
[356413758,1742424648354,-5000.0,0.0004775,120]
[356413759,1742424648363,-5000.0,0.0004775,120]
[356413760,1742424648374,-500.0,0.00047778,30]
[356413761,1742424648385,-2000.0,0.00047792,2]
[356413762,1742424648398,-649.70591156,0.000478,120]
[356413763,1742424648408,-11000.0,0.00047804,90]
[356413764,1742424648417,-500.0,0.0004781,15]
[356413765,1742424648427,-110990.88282836,0.00047827,2]
[356413766,1742424648438,-3063.00607413,0.00047827,2]
[356413767,1742424648448,-90480.69192801,0.00047827,2]
[356413768,1742424648457,-20000.0,0.00047827,2]
[356413769,1742424648468,-999.999999,0.00047827,2]
[356413770,1742424648478,-1772.15945845,0.00047827,3]
[356413771,1742424648487,-200.0,0.00047827,10]
[356413772,1742424648497,-1589.0,0.00047827,3]
[356413773,1742424648506,-5839.17101809,0.00047827,7]
[356413774,1742424648515,-631.77368158,0.00047827,2]
[356413775,1742424648525,-1071.03530059,0.00047827,10]
[356413776,1742424648536,-15081.09476603,0.00047827,10]
[356413777,1742424648547,-2920.0,0.00047827,2]
[356413778,1742424648558,-1010.23614483,0.00047827,2]
[356413779,1742424648569,-307.66608002,0.00047827,7]
[356413780,1742424648579,-4000.0,0.00047827,5]
[356413781,1742424648590,-25745.89026678,0.00047827,7]
[356413782,1742424648598,-498.0,0.00047827,7]
[356413783,1742424648606,-20603.84811722,0.00047827,7]
[356413784,1742424648615,-1385.66705427,0.00047827,2]
[356413785,1742424648623,-307.04383424,0.00047827,7]
[356413786,1742424648631,-190.08568328,0.00047827,12]
[356413787,1742424648639,-552281.82731261,0.00047827,7]
[356413788,1742424648659,-472.95933375,0.00047827,7]
[356413789,1742424679246,-183.14596007,0.0002479,2]
[356413803,1742425754182,-172.100027,0.00010959,2]
[356413804,1742425754215,-500.0,0.0002479,120]
[356413805,1742425754245,-301.40937791,0.0002479,120]
[356413806,1742425754274,-500.0,0.0002479,20]
[356413807,1742425754304,-300.0,0.0002479,2]
[356413808,1742425754338,-302.17,0.00024791,120]
[356413809,1742425754368,-500.0,0.00024791,20]
[356413810,1742425754397,-231.61587572,0.00024791,20]
[356413847,1742425832175,-268.38412428,0.00024791,20]
[356413849,1742425832184,-25.31525761,0.00024791,20]
[356414099,1742425838656,-474.68474239,0.00024791,20]
[356414100,1742425838666,-500.0,0.00024791,20]
[356414101,1742425838676,-500.0,0.00024791,20]
[356414102,1742425838685,-300.0,0.000248,11]
[356414103,1742425838694,-216.7947206,0.000269,4]
[356414104,1742425838706,-50.84897586,0.000269,4]
[356414105,1742425838715,-216.86352414,0.0003589,2]
[356414202,1742425840496,-283.13647586,0.0003589,2]
[356414203,1742425840506,-183.14596,0.00039678,2]
[356414204,1742425840516,-500.0,0.00041211,2]
[356414205,1742425840525,-500.0,0.00042635,30]
[356414206,1742425840535,-500.0,0.00043,60]
[356414207,1742425840546,-500.0,0.00045,120]
[356414208,1742425840555,-1001.72,0.00045,120]
[356414209,1742425840564,-500.0,0.00046,120]
[356414210,1742425840574,-1203.0126843,0.00046392,4]
[356414211,1742425840583,-500.0,0.00046399,120]
[356414212,1742425840592,-500.0,0.00046399,120]
[356414213,1742425840602,-615.24978812,0.00046399,120]
[356414214,1742425840611,-500.0,0.00046399,120]
[356414215,1742425840621,-500.0,0.00046399,120]
[356414216,1742425840630,-215.71274828,0.00046399,120]
[356414217,1742425840639,-27857.87923871,0.000464,120]
[356414218,1742425840648,-350.0,0.00046499,2]
[356414219,1742425840658,-9999.97,0.000465,120]
[356414220,1742425840667,-10000.0,0.000465,120]
[356414221,1742425840677,-500.0,0.00046532,2]
[356414222,1742425840686,-500.0,0.00046849,17]
[356414223,1742425840696,-500.0,0.00047,120]
[356414224,1742425840705,-500.0,0.00047,120]
[356414225,1742425840715,-500.0,0.00047,120]
[356414226,1742425840725,-500.0,0.00047,120]
[356414227,1742425840734,-500.0,0.00047,120]
[356414228,1742425840744,-500.0,0.00047,120]
[356414229,1742425840753,-500.0,0.00047,120]
[356414230,1742425840765,-500.0,0.00047,120]
[356414231,1742425840777,-500.0,0.00047,120]
[356414232,1742425840786,-500.0,0.00047,120]
[356414233,1742425840796,-2512.8966216,0.00047,120]
[356414234,1742425840807,-241.99634962,0.000471,2]
[356414235,1742425840816,-500.0,0.00047173,10]
[356414236,1742425840826,-500.0,0.00047179,31]
[356414237,1742425840835,-185.126846,0.00047179,120]
[356414238,1742425840845,-392.88621488,0.00047179,31]
[356414239,1742425841068,-471.16062784,0.00047179,31]
[356414240,1742425841164,-493.73,0.0004718,30]
[356414241,1742425841174,-77198.19,0.0004718,10]
[356414242,1742425841183,-128955.1891851,0.0004719,4]
[356414243,1742425842507,-0.0053885,0.0004719,4]
[356414256,1742425843210,-1000.0,0.0004719,4]
[356414268,1742425926125,-190.0,0.00015099,2]
[356414269,1742425944105,-110.0,0.00015099,2]
[356414270,1742425944129,-80.0,0.000151,10]
[356414271,1742425949870,-310.0,0.000151,10]
[356414276,1742426345319,-12826.0,0.000151,10]
[356414277,1742426345346,-500.0,0.00018175,2]
[356414278,1742426345371,-190.0,0.00018175,2]
[356414279,1742426345395,-500.0,0.00018175,2]
[356414280,1742426345422,-266.53984668,0.000189,2]
[356414281,1742426350005,-198.61230363,0.00024691,2]
[356414282,1742426350031,-150.0,0.000249,2]
[356414283,1742426359768,-2500.0,0.00028999,3]
[356414284,1742426359795,-179.47219868,0.00028999,2]
[356414285,1742426359820,-9087.25529791,0.00029,7]
[356414286,1742426359844,-9087.25529791,0.00029,7]
[356414287,1742426393077,3046.29338372,0.00029,7]
[356414288,1742426395384,3046.29338372,0.00029,7]
[356414290,1742426464391,150.0,0.000249,2]
[356414291,1742426478101,185.0,0.0004,7]
[356414292,1742426483578,484.82,0.0004,120]
[356414293,1742426520340,240.0,0.0004,7]
[356414294,1742426528903,500.0,0.0004,120]
[356414300,1742426779347,500.0,0.0003589,2]
[356414303,1742426913854,422.30228526,0.00029,10]
[356414304,1742426916816,16425.2909473,0.0004,30]
[356414308,1742427008908,160.0,0.00035,14]
[356414316,1742427020527,150.0,0.00035,14]
[356414361,1742427032539,-266.53984668,0.000399,8]
[356414362,1742427032553,-500.0,0.00039973,5]
[356414363,1742427032567,-500.0,0.00039973,5]
[356414364,1742427032581,-500.0,0.00039973,5]
[356414365,1742427032594,-183.0,0.00039999,5]
[356414366,1742427032607,-2962.93491972,0.0004,2]
[356414367,1742427032620,-14609.77377816,0.0004,2]
[356414368,1742427032634,-89885.34108659,0.0004,30]
[356414369,1742427032651,-27792.87609186,0.0004,30]
[356414509,1742427044717,-57.29174042,0.00039999,31]
[356414516,1742427044929,-217.72860999,0.00039999,31]
[356414517,1742427044939,-500.0,0.00039999,31]
[356414518,1742427044948,-500.0,0.00039999,31]
[356414519,1742427044958,-25.85839821,0.00039999,31]
[356414578,1742427046412,-153.95404128,0.00039999,31]
[356414579,1742427046422,-500.0,0.00039999,31]
[356414580,1742427046432,-488.11186074,0.00039999,31]
[356414581,1742427046441,-2957.16626336,0.0004,30]
[356414582,1742427046456,-311.35097416,0.0004,30]
[356414585,1742427046467,-3935.92469384,0.0004,30]
[356414613,1742427067654,9143.36387712,0.00015952,5]
[356414614,1742427137437,500.0,0.00028901,2]
[356414615,1742427137797,500.0,0.00029707,2]
[356414616,1742427140571,500.0,0.00030833,7]
[356414617,1742427141491,500.0,0.00031153,7]
[356414618,1742427141832,500.0,0.00031768,7]
[356414619,1742427142291,500.0,0.00032187,7]
[356414620,1742427142769,500.0,0.00033419,7]
[356414621,1742427143115,500.0,0.00034636,7]
[356414622,1742427222730,907.97,0.00035,2]
[356414623,1742427261586,300.0,0.000248,11]
[356414624,1742427261992,300.0,0.000263,12]
[356414625,1742427262523,300.0,0.000278,13]
[356414626,1742427437192,500.0,0.00027487,2]
[356414627,1742427441713,500.0,0.00033479,7]
[356414628,1742427441760,500.0,0.00027966,2]
[356414629,1742427442015,500.0,0.00034708,7]
[356414630,1742427737863,500.0,0.0003485,7]
[356414631,1742428037246,500.0,0.00029841,2]
[356414632,1742428037624,500.0,0.00034008,7]
[356414633,1742428042102,500.0,0.00026892,2]
[356414634,1742428042143,500.0,0.00032794,7]
[356414635,1742428061582,250.0,0.00034765,2]
[356414636,1742428140275,417.89091067,0.00028,3]
[356414662,1742428233020,-200.0,0.00035,14]
[356414663,1742428233035,-87.16050757,0.00035015,7]
[356414664,1742428233052,-524.0945634,0.00035015,7]
[356414665,1742428233066,-181.62851,0.00035115,2]
[356414666,1742428233079,-320.46366878,0.00035344,30]
[356414667,1742428233094,-945.99790542,0.00035345,2]
[356414690,1742428238887,-5114.18449012,0.00035345,2]
[356414691,1742428238899,-2666.0,0.00035345,2]
[356414692,1742428238911,-4344.19272957,0.00035345,2]
[356414693,1742428239587,19832.10908933,0.00034987,2]
[356414738,1742428240961,-4133.21801296,0.00034987,2]
[356415301,1742428605578,5000.0,0.0003,2]
[356415302,1742428944246,500.0,0.00029472,2]
[356415303,1742429062786,571.0,0.000248,11]
[356415355,1742429432875,-400.0,0.00034112,2]
[356415357,1742429432885,-21039.0696726,0.00034113,2]
[356415359,1742429432895,-623.16220398,0.00035224,2]
[356415361,1742429432907,-160.0,0.00035251,2]
[356415363,1742429432920,-553.50817551,0.00035344,7]
[356415365,1742429432930,-500.0,0.00035344,7]
[356415368,1742429432940,-500.0,0.00035344,7]
[356415370,1742429432950,-221.90531035,0.00035344,7]
[356415374,1742429432962,-270.22953894,0.00035344,7]
[356415377,1742429432973,-2185.57654569,0.00035345,2]
[356415379,1742429432984,-3000.0,0.00035789,120]
[356415381,1742429432994,-2000.0,0.00035888,2]
[356415383,1742429433006,-7304.88688908,0.00035889,2]
[356415385,1742429433016,-1481.46745986,0.00035889,2]
[356415387,1742429433026,-500.0,0.00035889,2]
[356415389,1742429433036,-975.3,0.00035889,2]
[356415391,1742429433045,-975.3,0.00035889,2]
[356415393,1742429433056,-975.3,0.00035889,2]
[356415395,1742429433066,-975.3,0.00035889,2]
[356415397,1742429433076,-975.3,0.00035889,2]
[356415399,1742429433086,-975.3,0.00035889,2]
[356415401,1742429433100,-975.3,0.00035889,2]
[356415403,1742429433112,-975.3,0.00035889,2]
[356415405,1742429433122,-975.3,0.00035889,2]
[356415407,1742429433133,-975.3,0.00035889,2]
[356415409,1742429433143,-975.3,0.00035889,2]
[356415411,1742429433154,-975.3,0.00035889,2]
[356415413,1742429433168,-975.3,0.00035889,2]
[356415415,1742429433178,-975.3,0.00035889,2]
[356415417,1742429433188,-975.3,0.00035889,2]
[356415419,1742429433199,-975.3,0.00035889,2]
[356415421,1742429433210,-975.3,0.00035889,2]
[356415423,1742429433221,-975.3,0.00035889,2]
[356415425,1742429433231,-975.3,0.00035889,2]
[356415427,1742429433242,-975.3,0.00035889,2]
[356415429,1742429433254,-975.3,0.00035889,2]
[356415431,1742429433265,-975.3,0.00035889,2]
[356415434,1742429433275,-975.3,0.00035889,2]
[356415436,1742429433284,-975.50297576,0.00035889,2]
[356415437,1742429433294,-309.54725735,0.00035889,2]
[356415440,1742429433304,-417.44277711,0.0003589,120]
[356415442,1742429433318,-82.55722289,0.0003589,120]
[356415444,1742429433328,-500.0,0.0003589,2]
[356415446,1742429433339,-207.29012475,0.000359,7]
[356415448,1742429433349,-1000.0,0.00036162,2]
[356415450,1742429433359,-500.0,0.00036163,2]
[356415452,1742429433370,-500.0,0.00036437,2]
[356415454,1742429433380,-2000.0,0.00036463,5]
[356415456,1742429433391,-207.29012475,0.00036471,7]
[356415458,1742429433401,-560.0,0.00036609,2]
[356415460,1742429433412,-500.0,0.00036711,2]
[356415462,1742429433422,-159.61,0.00036871,2]
[356415464,1742429433432,-181.62851,0.00036871,2]
[356415466,1742429433443,-500.0,0.00036985,2]
[356415468,1742429433452,-500.0,0.00036989,2]
[356415470,1742429433462,-500.0,0.00036989,120]
[356415472,1742429433472,-207.29012475,0.00037043,7]
[356415473,1742429433481,-500.0,0.00037259,2]
[356415476,1742429433493,-171.31132802,0.00037533,2]
[356415477,1742429433503,-207.29012475,0.00037614,7]
[356415480,1742429433513,-500.01839726,0.00038,14]
[356415482,1742429433523,-207.29012475,0.00038186,8]
[356415483,1742429433532,-207.29012475,0.00038757,8]
[356415485,1742429433542,-660.0,0.00039289,5]
[356415488,1742429433554,-207.29012475,0.00039329,8]
[356415490,1742429433563,-182.307,0.00039587,2]
[356415492,1742429433573,-150.0,0.00039587,2]
[356415494,1742429433582,-541.0,0.00039587,2]
[356415496,1742429433593,-154.95625447,0.00039673,2]
[356415497,1742429433603,-154.95625446,0.00039711,2]
[356415500,1742429433613,-196.08690704,0.00039756,2]
[356415501,1742429433623,-192.51424529,0.00039772,31]
[356415503,1742429433633,-586.50979301,0.00039772,31]
[356415505,1742429433643,-500.0,0.00039773,5]
[356415507,1742429433653,-500.0,0.00039773,5]
[356415509,1742429433663,-505.01222029,0.00039773,5]
[356415511,1742429433673,-500.88289438,0.00039773,5]
[356415513,1742429433684,-199.39700843,0.00039773,5]
[356415515,1742429433694,-500.0,0.00039773,5]
[356415517,1742429433704,-999.0,0.0003978,120]
[356415520,1742429433715,-222000.0,0.0003978,2]
[356415521,1742429433724,-160.0,0.0003988,3]
[356415523,1742429433736,-500.0,0.00039889,120]
[356415525,1742429433747,-500.0,0.00039889,120]
[356415528,1742429433758,-500.0,0.00039889,120]
[356415530,1742429433768,-500.0,0.00039889,120]
[356415532,1742429433779,-500.0,0.00039889,120]
[356415534,1742429433788,-500.0,0.00039889,120]
[356415536,1742429433798,-500.0,0.00039889,120]
[356415538,1742429433807,-500.0,0.00039889,120]
[356415540,1742429433819,-325.04,0.00039889,120]
[356415542,1742429433829,-207.29012475,0.000399,8]
[356415544,1742429433841,-1694.34091344,0.000399,2]
[356415546,1742429433851,-500.0,0.00039973,5]
[356415548,1742429433861,-500.0,0.00039973,5]
[356415550,1742429433871,-509.97334784,0.00039973,5]
[356415552,1742429433881,-500.0,0.00039973,5]
[356415554,1742429433891,-500.0,0.00039973,5]
[356415556,1742429433902,-500.0,0.00039973,5]
[356415558,1742429433915,-89097.12389475,0.0004,30]
[356416039,1742429438763,-8730.70288635,0.0003977,14]
[356416046,1742429438823,-37455.61483701,0.0003977,14]
[356416191,1742429441117,-208635.42163724,0.0003977,14]
[356416192,1742429441140,-2433.58597302,0.0003977,14]
[356416375,1742429443839,-585.4863605,0.0003977,14]
[356416716,1742429447482,-223.0,0.0003977,2]
[356416718,1742429447492,-87101.08846432,0.0003977,14]
[356416720,1742429447504,-21590.92860051,0.0003977,14]
[356416890,1742429449226,1994.85960828,0.00029,7]
[356417168,1742429452134,1994.85960828,0.00029,7]
[356419385,1742429483148,1914.49637243,0.00029,7]
[356419386,1742429485486,1914.49637243,0.00029,7]
[356419405,1742430506299,202.17990805,0.00019987,2]
[356419407,1742430521521,3787.44435468,0.000238,2]
[356419408,1742430572130,-409.56424603,0.0003589,2]
[356419457,1742430631808,-90.43575397,0.0003589,2]
[356419458,1742430631819,-160.0,0.0003698,2]
[356419459,1742430631830,-288.33423713,0.00037,102]
[356419460,1742430631841,-2000.0,0.00037006,5]
[356419461,1742430631851,-2777.2629911,0.00037101,2]
[356419462,1742430631861,-300.0,0.00037357,2]
[356419463,1742430631871,-1372.2419943,0.000388,4]
[356419464,1742430631881,-260.386,0.0003977,120]
[356419465,1742430631890,-241.99634962,0.0003979,2]
[356419466,1742430631900,-1470.83729372,0.00039831,2]
[356419467,1742430631910,-201.95293855,0.00039873,5]
[356419468,1742430631920,-500.0,0.00039873,5]
[356419469,1742430631931,-500.0,0.00039873,5]
[356419470,1742430631941,-500.0,0.00039873,5]
[356419471,1742430631951,-500.0,0.00039873,5]
[356419472,1742430631961,-500.0,0.00039873,5]
[356419473,1742430631971,-500.0,0.00039873,5]
[356419474,1742430631981,-600.0,0.00039876,2]
[356419475,1742430631991,-185.65771887,0.00039889,31]
[356419476,1742430632001,-500.0,0.00039889,31]
[356419477,1742430632011,-500.0,0.00039889,31]
[356419478,1742430632023,-360.28263522,0.00039889,31]
[356419479,1742430632041,-317.28070241,0.00039889,31]
[356419480,1742430632051,-183.14596007,0.00039889,31]
[356419481,1742430632062,-186.0,0.0003989,2]
[356419482,1742430632071,-218687.68385627,0.0003989,3]
[356419483,1742430632087,-1487.04002773,0.0003989,3]
[356419484,1742430632097,-417.89091067,0.0003989,3]
[356419485,1742430632107,-1028.43,0.00039899,120]
[356419486,1742430632116,-171566.63906159,0.000399,2]
[356419487,1742430632130,-1564.17486831,0.000399,2]
[356419488,1742430632141,-1135.68078911,0.000399,2]
[356419489,1742430632153,-478.72946397,0.000399,2]
[356419490,1742430632165,-2000.0,0.000399,2]
[356419494,1742430637713,-3488.76,0.000398,14]
[356419495,1742430637771,-3727.18500009,0.000398,14]
[356419516,1742430640095,-180499.56,0.000398,14]
[356419555,1742430642866,-6189.43894554,0.000398,14]
[356419556,1742430642921,-500.0,0.000398,14]
[356420020,1742431808175,5914.99013168,0.00015952,5]
[356420026,1742431832229,-500.0,0.0003589,2]
[356420027,1742431832239,-2000.0,0.000377,5]
[356420029,1742431832249,-207.59972725,0.000379,8]
[356420030,1742431832259,-611.8545637,0.00038035,2]
[356420031,1742431832268,-207.59972709,0.00038488,8]
[356420034,1742431832278,-211.26546887,0.000387,2]
[356420035,1742431832288,-400.0,0.00038799,5]
[356420038,1742431832298,-1029.1814957,0.000388,4]
[356420040,1742431832308,-500.0,0.00039,14]
[356420041,1742431832318,-207.59972709,0.00039076,8]
[356420043,1742431832328,-207.59972709,0.00039665,8]
[356420045,1742431832338,-214.0325197,0.00039772,31]
[356420047,1742431832348,-1470.83729371,0.00039789,2]
[356420049,1742431832358,-500.0,0.00039799,31]
[356420051,1742431832368,-619.38536678,0.00039799,31]
[356420053,1742431832378,-208.03075976,0.00039799,31]
[356420055,1742431832389,-500.0,0.00039799,31]
[356420057,1742431832398,-500.0,0.00039799,31]
[356420059,1742431832408,-500.0,0.00039799,31]
[356420061,1742431832417,-500.0,0.00039799,31]
[356420063,1742431832427,-500.0,0.00039799,31]
[356420065,1742431832436,-514.92863241,0.00039799,31]
[356420067,1742431832446,-500.0,0.00039799,31]
[356420069,1742431832456,-310.0,0.000398,2]
[356420071,1742431832466,-2500.0,0.000398,120]
[356420073,1742431832476,-71808.42168264,0.000398,14]
[356420075,1742431832485,-194.0,0.000398,31]
[356420077,1742431832495,-600.0,0.00039866,2]
[356420079,1742431832504,-500.0,0.00039873,5]
[356420081,1742431832514,-500.0,0.00039873,5]
[356420082,1742431832523,-62382.8384337,0.0003988,3]
[356420085,1742431832534,-417.89091067,0.0003988,3]
[356420086,1742431832543,-500.0,0.0003988,120]
[356420088,1742431832553,-500.0,0.0003988,120]
[356420090,1742431832562,-500.0,0.0003988,120]
[356420092,1742431832572,-337.15,0.0003988,120]
[356420094,1742431832581,-999.0,0.0003988,120]
[356420096,1742431832591,-39822.15077752,0.0003988,3]
[356420099,1742431832603,-111051.88760815,0.0003988,3]
[356420181,1742431838001,-2493.08262015,0.0003988,3]
[356420183,1742431838012,-1736.82572858,0.0003988,3]
[356420185,1742431838027,-8541.02796053,0.0003988,3]
[356420762,1742431843639,-511.91644695,0.0003988,3]
[356420879,1742431846133,-2986.49999998,0.0003988,3]
[356420880,1742431846187,-55078.18314244,0.0003988,3]
[356420881,1742431846242,-352.01713833,0.0003988,3]
[356423454,1742431886790,1000.0,0.0003,2]
[356423455,1742431894743,205.67364417,0.00029,7]
[356423456,1742431946242,7380.8,0.00025,2]
[356423457,1742432809924,-215.97689675,0.00028999,2]
[356423458,1742432952626,752.27,0.00027,2]
[356423487,1742433032276,-167.0,0.00028999,2]
[356423488,1742433032286,-1317.47304769,0.00029,7]
[356423489,1742433032296,-1523.14669186,0.00029,7]
[356423490,1742433032306,-2149.41966208,0.00029,7]
[356423491,1742433032316,-2149.41966208,0.00029,7]
[356423492,1742433032325,-211.52906848,0.000329,6]
[356423493,1742433032334,-211.52906839,0.00034043,6]
[356423494,1742433032344,-211.52906839,0.00035186,7]
[356423495,1742433032353,-500.0,0.00035823,15]
[356423496,1742433032362,-500.0,0.00035823,15]
[356423497,1742433032372,-511.00271348,0.00035823,15]
[356423498,1742433032381,-2000.0,0.00035824,2]
[356423499,1742433032391,-207.0,0.00035824,2]
[356423500,1742433032399,-19832.1090893,0.00035824,2]
[356423501,1742433032409,-500.0,0.0003589,2]
[356423502,1742433032419,-2000.0,0.00036098,2]
[356423503,1742433032428,-2000.0,0.000362,5]
[356423504,1742433032439,-150.0,0.000363,2]
[356423505,1742433032448,-211.52906839,0.00036329,7]
[356423506,1742433032458,-211.52906839,0.00037471,7]
[356423507,1742433032467,-833.92477148,0.00037588,7]
[356423508,1742433032476,-211.52906839,0.00038614,8]
[356423509,1742433032486,-857.626169,0.00038703,4]
[356423510,1742433032495,-922.3022862,0.00039,3]
[356423511,1742433032505,-160.0,0.00039619,2]